fUST/lending_fUST_20260309
["ID","MTS","AMOUNT","RATE_DAILY","PERIOD"]
[407996381,1772994632466,-300.0,2.541e-05,2]
[407996383,1772994632475,-300.0,2.541e-05,2]
[407996385,1772994632485,-300.0,2.541e-05,2]
[407996387,1772994632494,-300.0,2.541e-05,2]
[407996389,1772994632503,-300.0,2.541e-05,2]
[407996391,1772994632514,-600.0,2.541e-05,2]
[407996393,1772994632524,-723.98994599,2.542e-05,2]
[407996396,1772994632547,-350.0009625,2.542e-05,2]
[407996472,1772994638431,-1104.79796311,2.542e-05,2]
[407996473,1772994638440,-23958.1233386,2.542e-05,2]
[407996474,1772994638450,-1822.75365863,2.58e-05,2]
[407996475,1772994638459,-420.0,2.794e-05,2]
[407996476,1772994638468,-1680.0,2.794e-05,2]
[407996478,1772994638477,-720.0,2.796e-05,2]
[407996480,1772994638486,-1391.0,2.83e-05,2]
[407996482,1772994638495,-2191.0,2.83e-05,2]
[407996484,1772994638504,-732.0,2.83e-05,2]
[407996486,1772994638513,-451.232,2.83e-05,2]
[407996488,1772994638522,-435.0,2.83e-05,2]
[407996490,1772994638531,-5345.7798974,2.873e-05,2]
[407996491,1772994638540,-500.0,2.887e-05,2]
[407996493,1772994638549,-500.0,2.887e-05,2]
[407996495,1772994638559,-500.0,2.887e-05,2]
[407996497,1772994638568,-500.0,2.887e-05,2]
[407996499,1772994638577,-250.0,2.887e-05,2]
[407996501,1772994638586,-500.0,2.887e-05,2]
[407996503,1772994638595,-250.0,2.887e-05,2]
[407996506,1772994638604,-500.0,2.887e-05,2]
[407996508,1772994638613,-500.0,2.887e-05,2]
[407996510,1772994638622,-162.380719,2.887e-05,2]
[407996512,1772994638631,-250.0,2.887e-05,2]
[407996514,1772994638640,-500.0,2.887e-05,2]
[407996516,1772994638649,-500.0,2.887e-05,2]
[407996518,1772994638657,-250.0,2.887e-05,2]
[407996520,1772994638666,-500.0,2.887e-05,2]
[407996522,1772994638675,-500.0,2.887e-05,2]
[407996556,1772994638987,-250.0,2.887e-05,2]
[407996558,1772994638996,-500.0,2.887e-05,2]
[407996560,1772994639006,-500.0,2.887e-05,2]
[407996562,1772994639015,-250.0,2.887e-05,2]
[407996564,1772994639026,-500.0,2.887e-05,2]
[407996566,1772994639035,-500.0,2.887e-05,2]
[407996568,1772994639044,-250.0,2.887e-05,2]
[407996570,1772994639053,-500.0,2.887e-05,2]
[407996572,1772994639061,-500.0,2.887e-05,2]
[407996574,1772994639071,-250.0,2.887e-05,2]
[407996576,1772994639080,-500.0,2.887e-05,2]
[407996577,1772994639089,-500.0,2.887e-05,2]
[407996579,1772994639098,-250.0,2.887e-05,2]
[407996581,1772994639108,-500.0,2.887e-05,2]
[407996584,1772994639117,-500.0,2.887e-05,2]
[407996586,1772994639126,-250.0,2.887e-05,2]
[407996588,1772994639136,-500.0,2.887e-05,2]
[407996590,1772994639146,-500.0,2.887e-05,2]
[407996591,1772994639155,-250.0,2.887e-05,2]
[407996593,1772994639164,-500.0,2.887e-05,2]
[407996595,1772994639173,-500.0,2.887e-05,2]
[407996597,1772994639182,-246.56125856,2.887e-05,2]
[407996599,1772994639191,-500.0,2.887e-05,2]
[407996601,1772994639200,-500.0,2.887e-05,2]
[407996603,1772994639209,-179.14903611,2.887e-05,2]
[407996605,1772994639218,-480.63779461,2.887e-05,2]
[407996607,1772994639231,-19.36220539,2.887e-05,2]
[407996609,1772994639240,-500.0,2.887e-05,2]
[407996611,1772994639250,-500.0,2.887e-05,2]
[407996613,1772994639259,-500.0,2.887e-05,2]
[407996615,1772994639267,-500.0,2.887e-05,2]
[407996617,1772994639277,-500.0,2.887e-05,2]
[407996619,1772994639285,-500.0,2.887e-05,2]
[407996621,1772994639295,-500.0,2.887e-05,2]
[407996623,1772994639303,-500.0,2.887e-05,2]
[407996625,1772994639312,-214.78211377,2.887e-05,2]
[407996627,1772994639322,-250.0,2.887e-05,2]
[407996629,1772994639331,-250.0,2.887e-05,2]
[407996631,1772994639340,-250.0,2.887e-05,2]
[407996632,1772994639349,-445.202766,2.887e-05,2]
[407996634,1772994639359,-250.0,2.887e-05,2]
[407996636,1772994639368,-250.0,2.887e-05,2]
[407996637,1772994639377,-2150.738,2.887e-05,2]
[407996638,1772994639386,-250.0,2.887e-05,2]
[407996639,1772994639396,-250.0,2.887e-05,2]
[407996641,1772994639405,-250.0,2.887e-05,2]
[407996643,1772994639414,-250.0,2.887e-05,2]
[407996645,1772994639423,-250.0,2.887e-05,2]
[407996646,1772994639433,-250.0,2.887e-05,2]
[407996647,1772994639444,-250.0,2.887e-05,2]
[407996648,1772994639453,-250.0,2.887e-05,2]
[407996649,1772994639462,-250.0,2.887e-05,2]
[407996650,1772994639471,-250.0,2.887e-05,2]
[407996651,1772994639481,-250.0,2.887e-05,2]
[407996652,1772994639490,-250.0,2.887e-05,2]
[407996653,1772994639499,-250.0,2.887e-05,2]
[407996654,1772994639510,-537.6845,2.887e-05,2]
[407996655,1772994639519,-150.572,2.898e-05,2]
[407996656,1772994639528,-250.0,2.898e-05,2]
[407996657,1772994639537,-150.303,2.898e-05,2]
[407996658,1772994639546,-489.0,2.9e-05,2]
[407996659,1772994639560,-800.0,2.937e-05,2]
[407996660,1772994639569,-151.0,2.946e-05,2]
[407996661,1772994639578,-151.0,2.946e-05,2]
[407996662,1772994639587,-151.0,2.946e-05,2]
[407996663,1772994639596,-272.45958855,2.946e-05,2]
[407996664,1772994639605,-1192.8047246,2.946e-05,2]
[407996665,1772994639614,-800.0,2.954e-05,2]
[407996666,1772994639622,-800.0,2.966e-05,2]
[407996667,1772994639631,-778.76388051,2.988e-05,2]
[407996668,1772994639639,-800.0,3.034e-05,2]
[407996669,1772994639648,-1000.0,3.041e-05,2]
[407996670,1772994639657,-689.0,3.067e-05,2]
[407996671,1772994639666,-463.98451705,3.067e-05,2]
[407996672,1772994639675,-235.25297584,3.067e-05,2]
[407996673,1772994639684,-351.0,3.067e-05,2]
[407996674,1772994639692,-351.0,3.067e-05,2]
[407996675,1772994639701,-351.0,3.067e-05,2]
[407996676,1772994639710,-351.0,3.067e-05,2]
[407996677,1772994639718,-340.74958525,3.067e-05,2]
[407996678,1772994639727,-158.76815919,3.067e-05,2]
[407996679,1772994639736,-587.0,3.073e-05,2]
[407996680,1772994639747,-2351.0,3.073e-05,2]
[407996681,1772994639757,-864.0,3.075e-05,2]
[407996682,1772994639765,-800.0,3.109e-05,2]
[407996683,1772994639774,-800.0,3.113e-05,2]
[407996684,1772994639783,-2347.68504865,3.136e-05,2]
[407996685,1772994639794,-500.0,3.173e-05,2]
[407996686,1772994639802,-500.0,3.173e-05,2]
[407996687,1772994639811,-500.0,3.173e-05,2]
[407996688,1772994639822,-500.0,3.173e-05,2]
[407996689,1772994639831,-500.0,3.173e-05,2]
[407996690,1772994639840,-500.0,3.173e-05,2]
[407996691,1772994639849,-500.0,3.173e-05,2]
[407996692,1772994639858,-500.0,3.173e-05,2]
[407996693,1772994639868,-609.13112128,3.173e-05,2]
[407996694,1772994639876,-500.0,3.173e-05,2]
[407996695,1772994639886,-500.0,3.173e-05,2]
[407996696,1772994639895,-500.0,3.173e-05,2]
[407996697,1772994639905,-500.0,3.173e-05,2]
[407996698,1772994639914,-500.0,3.173e-05,2]
[407996699,1772994639923,-500.0,3.173e-05,2]
[407996700,1772994639931,-500.0,3.173e-05,2]
[407996701,1772994639940,-500.0,3.173e-05,2]
[407996702,1772994639949,-500.0,3.173e-05,2]
[407996703,1772994639957,-500.0,3.173e-05,2]
[407996704,1772994639966,-500.0,3.173e-05,2]
[407996705,1772994639975,-151.0,3.173e-05,2]
[407996706,1772994639985,-151.0,3.173e-05,2]
[407996707,1772994639994,-151.0,3.173e-05,2]
[407996708,1772994640003,-151.0,3.173e-05,2]
[407996709,1772994640012,-265.15091,3.173e-05,2]
[407996710,1772994640021,-407439.67325559,3.2e-05,2]
[407996711,1772994640029,-151.0,3.2e-05,2]
[407996712,1772994640038,-151.0,3.2e-05,2]
[407996713,1772994640048,-151.0,3.2e-05,2]
[407996714,1772994640057,-151.0,3.2e-05,2]
[407996715,1772994640066,-20262.65392168,3.267e-05,2]
[407996716,1772994640075,-162.380719,3.298e-05,2]
[407996717,1772994640083,-168.3888056,3.298e-05,2]
[407996718,1772994640092,-174.61919141,3.298e-05,2]
[407996719,1772994640101,-181.08010149,3.298e-05,2]
[407996720,1772994640110,-187.78006525,3.298e-05,2]
[407996721,1772994640119,-194.72792766,3.298e-05,2]
[407996722,1772994640129,-201.93286099,3.298e-05,2]
[407996723,1772994640138,-209.40437684,3.298e-05,2]
[407996724,1772994640147,-217.15233878,3.298e-05,2]
[407996725,1772994640157,-225.18697532,3.298e-05,2]
[407996726,1772994640166,-233.51889341,3.298e-05,2]
[407996727,1772994640175,-242.15909246,3.298e-05,2]
[407996728,1772994640183,-251.11897888,3.298e-05,2]
[407996729,1772994640192,-260.4103811,3.298e-05,2]
[407996730,1772994640201,-270.0455652,3.298e-05,2]
[407996731,1772994640210,-280.03725112,3.298e-05,2]
[407996732,1772994640219,-290.39862941,3.298e-05,2]
[407996733,1772994640229,-301.1433787,3.298e-05,2]
[407996734,1772994640238,-157.989,3.299e-05,2]
[407996735,1772994640248,-1859917.70052435,3.3e-05,2]
[407996736,1772994640257,-151.0,3.3e-05,2]
[407996737,1772994640266,-151.0,3.3e-05,2]
[407996738,1772994640275,-151.0,3.3e-05,2]
[407996739,1772994640284,-151.0,3.3e-05,2]
[407996740,1772994640293,-823.0,3.381e-05,2]
[407996741,1772994640302,-1385.0,3.381e-05,2]
[407996742,1772994640311,-1000.0,3.383e-05,2]
[407996745,1772994640320,-461.67526834,3.435e-05,2]
[407996748,1772994640328,-2230.315306,3.435e-05,2]
[407996750,1772994640337,-557.5788265,3.435e-05,2]
[407996753,1772994640346,-1000.0,3.588e-05,2]
[407996755,1772994640357,-468398.36904352,3.623e-05,2]
[407996757,1772994640367,-151.0,3.623e-05,2]
[407996759,1772994640376,-151.0,3.623e-05,2]
[407996760,1772994640385,-151.0,3.623e-05,2]
[407996761,1772994640394,-151.0,3.623e-05,2]
[407996762,1772994640403,-2000.0,3.7e-05,2]
[407996763,1772994640411,-1152.0,3.719e-05,2]
[407996764,1772994640420,-1000.0,3.721e-05,2]
[407996765,1772994640429,-1000.0,3.721e-05,2]
[407996766,1772994640438,-1000.0,3.721e-05,2]
[407996767,1772994640447,-1000.0,3.721e-05,2]
[407996768,1772994640456,-1000.0,3.721e-05,2]
[407996769,1772994640466,-1000.0,3.721e-05,2]
[407996770,1772994640475,-1000.0,3.721e-05,2]
[407996771,1772994640484,-1000.0,3.721e-05,2]
[407996772,1772994640493,-1000.0,3.721e-05,2]
[407996773,1772994640502,-215.16370065,3.721e-05,2]
[407996774,1772994640511,-1000.0,3.721e-05,2]
[407996775,1772994640520,-1000.0,3.721e-05,2]
[407996776,1772994640530,-151.49422731,3.721e-05,2]
[407996777,1772994640539,-1000.0,3.721e-05,2]
[407996778,1772994640548,-1000.0,3.721e-05,2]
[407996779,1772994640557,-1000.0,3.721e-05,2]
[407996780,1772994640567,-1000.0,3.721e-05,2]
[407996781,1772994640576,-1000.0,3.721e-05,2]
[407996782,1772994640586,-1000.0,3.721e-05,2]
[407996783,1772994640594,-1000.0,3.721e-05,2]
[407996784,1772994640603,-244.0,3.721e-05,2]
[407996785,1772994640613,-500.0,3.8e-05,2]
[407996786,1772994640623,-2000.0,3.9e-05,2]
[407996787,1772994640632,-151.0,3.983e-05,2]
[407996788,1772994640642,-478.75725327,3.983e-05,2]
[407996789,1772994640651,-2312.83697232,3.983e-05,2]
[407996790,1772994640661,-578.20924308,3.983e-05,2]
[407996791,1772994640671,-772.73551415,4e-05,2]
[407996792,1772994640680,-1000.0,4.093e-05,2]
[407996793,1772994640690,-492.0,4.093e-05,2]
[407996794,1772994640699,-168.3888056,4.256e-05,2]
[407996795,1772994640708,-1358.3600221,4.268e-05,2]
[407996796,1772994640718,-1500.0,4.268e-05,2]
[407996797,1772994640728,-295.82926348,4.268e-05,2]
[407996798,1772994640737,-1500.0,4.268e-05,2]
[407996800,1772994640752,-1500.0,4.268e-05,2]
[407996802,1772994640762,-1500.0,4.268e-05,2]
[407996804,1772994640771,-1500.0,4.268e-05,2]
[407996806,1772994640781,-1500.0,4.268e-05,2]
[407996808,1772994640792,-1500.0,4.268e-05,2]
[407996810,1772994640801,-1500.0,4.268e-05,2]
[407996812,1772994640810,-1500.0,4.268e-05,2]
[407996814,1772994640821,-1500.0,4.268e-05,2]
[407996816,1772994640830,-1500.0,4.268e-05,2]
[407996818,1772994640839,-1000.0,4.268e-05,2]
[407996820,1772994640848,-1500.0,4.268e-05,2]
[407996822,1772994640857,-1500.0,4.268e-05,2]
[407996824,1772994640866,-1500.0,4.268e-05,2]
[407996826,1772994640875,-979.87,4.3e-05,2]
[407996828,1772994640886,-793.77149758,4.3e-05,2]
[407996830,1772994640895,-333.28657287,4.424e-05,2]
[407996832,1772994640904,-1000.0,4.502e-05,2]
[407996834,1772994640913,-791.0,4.502e-05,2]
[407996836,1772994640923,-496.47127164,4.531e-05,2]
[407996838,1772994640933,-2398.4119403,4.531e-05,2]
[407996840,1772994640942,-599.60298507,4.531e-05,2]
[407996842,1772994640951,-500.0,4.539e-05,2]
[407996844,1772994640961,-500.0,4.634e-05,2]
[407996846,1772994640971,-500.0,4.729e-05,2]
[407996848,1772994640980,-900.0,4.753e-05,2]
[407996850,1772994640989,-900.0,4.798e-05,2]
[407996852,1772994640999,-900.0,4.809e-05,2]
[407996854,1772994641008,-2000.0,4.816e-05,2]
[407996856,1772994641018,-1723.20124947,4.816e-05,2]
[407996858,1772994641028,-2000.0,4.816e-05,2]
[407996860,1772994641038,-2067.71336261,4.816e-05,2]
[407996862,1772994641047,-2000.0,4.816e-05,2]
[407996864,1772994641055,-500.0,4.816e-05,2]
[407996866,1772994641066,-2000.0,4.816e-05,2]
[407996868,1772994641076,-2000.0,4.816e-05,2]
[407996870,1772994641085,-1500.0,4.816e-05,2]
[407996872,1772994641094,-2000.0,4.816e-05,2]
[407996874,1772994641104,-2000.0,4.816e-05,2]
[407996876,1772994641113,-2000.0,4.816e-05,2]
[407996878,1772994641123,-2000.0,4.816e-05,2]
[407996880,1772994641133,-1000.0,4.816e-05,2]
[407996882,1772994641142,-900.0,4.822e-05,2]
[407996884,1772994641152,-900.0,4.875e-05,2]
[407996886,1772994641161,-500.0,4.898e-05,2]
[407996888,1772994641171,-900.0,4.941e-05,2]
[407996891,1772994641181,-1000.0,4.953e-05,2]
[407996893,1772994641191,-1000.0,4.953e-05,2]
[407996895,1772994641200,-900.0,4.971e-05,2]
[407996897,1772994641210,-200.0,5e-05,2]
[407996899,1772994641219,-200.0,5e-05,2]
[407996901,1772994641229,-7870.22623345,5e-05,2]
[407996903,1772994641238,-20215.46281748,5e-05,2]
[407996905,1772994641247,-17375.31310949,5e-05,2]
[407996907,1772994641257,-15461.38943071,5e-05,2]
[407996909,1772994641267,-26044.31431687,5e-05,2]
[407996911,1772994641276,-26044.31431687,5e-05,2]
[407996913,1772994641286,-19289.23678832,5e-05,2]
[407996915,1772994641295,-22039.59580089,5e-05,2]
[407996917,1772994641304,-19450.56558364,5e-05,2]
[407996919,1772994641313,-679.88075359,5e-05,2]
[407996921,1772994641323,-1742.39728666,5e-05,2]
[407996923,1772994641332,-172.37684369,5e-05,2]
[407996925,1772994641342,-172.37684368,5e-05,2]
[407996927,1772994641351,-172.37684368,5e-05,2]
[407996929,1772994641360,-500.0,5e-05,2]
[407996931,1772994641370,-172.81596771,5e-05,2]
[407996933,1772994641381,-502.58831501,5e-05,2]
[407996935,1772994641390,-500.0,5e-05,2]
[407996937,1772994641399,-500.0,5e-05,2]
[407996939,1772994641408,-500.0,5e-05,2]
[407996941,1772994641417,-203.79693064,5e-05,2]
[407996943,1772994641427,-500.0,5e-05,2]
[407996945,1772994641436,-500.0,5e-05,2]
[407996947,1772994641445,-500.0,5e-05,2]
[407996949,1772994641454,-500.0,5e-05,2]
[407996951,1772994641463,-500.0,5e-05,2]
[407996953,1772994641473,-500.0,5e-05,2]
[407996954,1772994641483,-500.0,5e-05,2]
[407996956,1772994641492,-500.0,5e-05,2]
[407996958,1772994641501,-500.0,5e-05,2]
[407996960,1772994641510,-500.0,5e-05,2]
[407996962,1772994641519,-500.0,5e-05,2]
[407996964,1772994641528,-500.0,5e-05,2]
[407996966,1772994641538,-500.0,5e-05,2]
[407996969,1772994641548,-500.0,5e-05,2]
[407996971,1772994641558,-500.0,5e-05,2]
[407996973,1772994641568,-500.0,5e-05,2]
[407996975,1772994641577,-500.0,5e-05,2]
[407996977,1772994641586,-500.0,5e-05,2]
[407996979,1772994641595,-500.0,5e-05,2]
[407996981,1772994641604,-502.95861511,5e-05,2]
[407996983,1772994641613,-500.0,5e-05,2]
[407996985,1772994641623,-500.0,5e-05,2]
[407996987,1772994641632,-500.0,5e-05,2]
[407996989,1772994641641,-500.0,5e-05,2]
[407996991,1772994641650,-500.0,5e-05,2]
[407996993,1772994641659,-500.0,5e-05,2]
[407996995,1772994641669,-500.0,5e-05,2]
[407996997,1772994641678,-500.0,5e-05,2]
[407996999,1772994641687,-500.0,5e-05,2]
[407997001,1772994641697,-456.93097931,5e-05,2]
[407997003,1772994641706,-500.0,5e-05,2]
[407997004,1772994641717,-500.0,5e-05,2]
[407997007,1772994641727,-500.0,5e-05,2]
[407997009,1772994641736,-500.0,5e-05,2]
[407997011,1772994641747,-500.0,5e-05,2]
[407997013,1772994641758,-500.0,5e-05,2]
[407997015,1772994641766,-514.84070869,5.079e-05,2]
[407997017,1772994641776,-2487.15318209,5.079e-05,2]
[407997019,1772994641785,-621.78829552,5.079e-05,2]
[407997021,1772994641796,-500.0,5.1e-05,2]
[407997023,1772994641806,-900.0,5.104e-05,2]
[407997025,1772994641816,-500.0,5.106e-05,2]
[407997027,1772994641825,-500.0,5.155e-05,2]
[407997028,1772994641835,-500.0,5.248e-05,2]
[407997031,1772994641846,-900.0,5.317e-05,2]
[407997033,1772994641855,-2500.0,5.364e-05,2]
[407997035,1772994641864,-2500.0,5.364e-05,2]
[407997037,1772994641873,-2239.41291991,5.364e-05,2]
[407997039,1772994641882,-2500.0,5.364e-05,2]
[407997041,1772994641891,-1000.0,5.364e-05,2]
[407997043,1772994641900,-2289.6809691,5.364e-05,2]
[407997045,1772994641909,-2500.0,5.364e-05,2]
[407997047,1772994641918,-1975.6557363,5.364e-05,2]
[407997049,1772994641927,-500.0,5.383e-05,2]
[407997050,1772994641936,-900.0,5.419e-05,2]
[407997051,1772994641945,-1000.0,5.448e-05,2]
[407997052,1772994641955,-1000.0,5.448e-05,2]
[407997053,1772994641964,-579.0,5.448e-05,2]
[407997054,1772994641973,-900.0,5.478e-05,2]
[407997055,1772994641982,-500.0,5.479e-05,2]
[407997056,1772994641991,-500.0,5.479e-05,2]
[407997057,1772994642000,-500.0,5.479e-05,2]
[407997058,1772994642009,-500.0,5.479e-05,2]
[407997059,1772994642019,-500.0,5.479e-05,2]
[407997060,1772994642027,-500.0,5.479e-05,2]
[407997061,1772994642037,-500.0,5.479e-05,2]
[407997062,1772994642046,-500.0,5.479e-05,2]
[407997063,1772994642055,-500.0,5.479e-05,2]
[407997064,1772994642064,-500.0,5.479e-05,2]
[407997065,1772994642074,-500.0,5.479e-05,2]
[407997066,1772994642083,-500.0,5.479e-05,2]
[407997067,1772994642093,-379.63686822,5.479e-05,2]
[407997068,1772994642102,-300.0,5.479e-05,2]
[407997069,1772994642112,-3383.6729805,5.479e-05,2]
[407997070,1772994642121,-213.842658,5.479e-05,2]
[407997071,1772994642130,-500.0,5.519e-05,2]
[407997072,1772994642139,-900.0,5.548e-05,2]
[407997073,1772994642149,-900.0,5.613e-05,2]
[407997074,1772994642158,-174.61919141,5.625e-05,2]
[407997075,1772994642167,-533.88981491,5.627e-05,2]
[407997076,1772994642176,-2579.17784983,5.627e-05,2]
[407997078,1772994642186,-644.79446246,5.627e-05,2]
[407997080,1772994642195,-900.0,5.632e-05,2]
[407997082,1772994642204,-500.0,5.643e-05,2]
[407997084,1772994642214,-900.0,5.703e-05,2]
[407997086,1772994642223,-900.0,5.764e-05,2]
[407997088,1772994642232,-900.0,5.771e-05,2]
[407997090,1772994642241,-2191.0,5.83e-05,2]
[407997092,1772994642251,-732.0,5.83e-05,2]
[407997094,1772994642261,-435.0,5.83e-05,2]
[407997096,1772994642270,-500.0,5.834e-05,2]
[407997098,1772994642279,-26044.31431687,5.84e-05,2]
[407997100,1772994642289,-500.0,5.91e-05,2]
[407997102,1772994642298,-1500.0,5.912e-05,2]
[407997104,1772994642308,-1423.16370065,5.912e-05,2]
[407997106,1772994642317,-3000.0,5.912e-05,2]
[407997108,1772994642326,-1207.65960443,5.912e-05,2]
[407997110,1772994642335,-900.0,5.928e-05,2]
[407997112,1772994642345,-1000.0,5.993e-05,2]
[407997114,1772994642354,-1000.0,5.993e-05,2]
[407997116,1772994642365,-1000.0,5.993e-05,2]
[407997118,1772994642374,-900.0,5.994e-05,2]
[407997120,1772994642384,-500.0,6.025e-05,2]
[407997122,1772994642393,-500.0,6.051e-05,2]
[407997124,1772994642403,-500.0,6.065e-05,2]
[407997126,1772994642412,-500.0,6.114e-05,2]
[407997128,1772994642423,-500.0,6.17e-05,2]
[407997130,1772994642432,-300.88979552,6.175e-05,2]
[407997132,1772994642441,-2674.60743027,6.175e-05,2]
[407997134,1772994642450,-668.65185757,6.175e-05,2]
[407997136,1772994642460,-500.0,6.251e-05,2]
[407997138,1772994642468,-500.0,6.308e-05,2]
[407997140,1772994642478,-500.0,6.315e-05,2]
[407997142,1772994642487,-500.0,6.324e-05,2]
[407997144,1772994642496,-900.0,6.327e-05,2]
[407997146,1772994642505,-500.0,6.357e-05,2]
[407997148,1772994642515,-500.0,6.417e-05,2]
[407997150,1772994642524,-384.12689754,6.424e-05,2]
[407997152,1772994642533,-500.0,6.45e-05,2]
[407997154,1772994642542,-1692.2609157,6.46e-05,2]
[407997156,1772994642551,-18725.01106351,6.534e-05,2]
[407997158,1772994642560,-900.0,6.539e-05,2]
[407997160,1772994642570,-500.0,6.541e-05,2]
[407997162,1772994642579,-500.0,6.55e-05,2]
[407997163,1772994642589,-1000.0,6.592e-05,2]
[407997165,1772994642598,-372.0,6.592e-05,2]
[407997167,1772994642607,-2773.56790519,6.723e-05,2]
[407997169,1772994642616,-614.31578316,6.723e-05,2]
[407997172,1772994642625,-500.0,6.755e-05,2]
[407997173,1772994642635,-500.0,6.755e-05,2]
[407997176,1772994642645,-500.0,6.778e-05,2]
[407997178,1772994642656,-500.0,6.795e-05,2]
[407997180,1772994642666,-900.0,6.835e-05,2]
[407997182,1772994642675,-500.0,6.843e-05,2]
[407997184,1772994642684,-1046.06631138,6.849e-05,2]
[407997186,1772994642693,-669.48243928,6.849e-05,2]
[407997188,1772994642703,-376.5838721,6.849e-05,2]
[407997190,1772994642712,-209.00404901,6.849e-05,2]
[407997192,1772994642721,-1306.63628742,6.849e-05,2]
[407997194,1772994642730,-836.24722395,6.849e-05,2]
[407997196,1772994642739,-470.38906347,6.849e-05,2]
[407997198,1772994642751,-261.06593023,6.849e-05,2]
[407997200,1772994642760,-620.0,6.849e-05,2]
[407997202,1772994642770,-500.0,6.86e-05,2]
[407997204,1772994642779,-900.0,6.874e-05,2]
[407997206,1772994642790,-900.0,6.887e-05,2]
[407997208,1772994642799,-500.0,6.927e-05,2]
[407997210,1772994642808,-848.80216634,6.933e-05,2]
[407997212,1772994642820,-1282.4539228,6.933e-05,2]
[407997214,1772994642828,-1203.67340906,6.937e-05,2]
[407997216,1772994642839,-376.14794033,6.937e-05,2]
[407997218,1772994642848,-309.99346914,6.937e-05,2]
[407997220,1772994642857,-557.98824446,6.937e-05,2]
[407997222,1772994642868,-991.97910126,6.937e-05,2]
[407997224,1772994642878,-1549.96734572,6.937e-05,2]
[407997226,1772994642888,-677.0662926,6.947e-05,2]
[407997235,1772994643134,-26044.31431687,6.959e-05,2]
[407997236,1772994643144,-168.92699734,6.994e-05,2]
[407997237,1772994643154,-900.0,7.033e-05,2]
[407997238,1772994643169,-500.0,7.037e-05,2]
[407997239,1772994643179,-1600.0,7.085e-05,2]
[407997240,1772994643188,-996.17828861,7.086e-05,2]
[407997242,1772994643198,-992.09417167,7.086e-05,2]
[407997243,1772994643208,-500.0,7.093e-05,2]
[407997245,1772994643218,-2876.18991768,7.271e-05,2]
[407997247,1772994643228,-501.18049057,7.447e-05,2]
[407997249,1772994643237,-2982.60894464,7.819e-05,2]
[407997251,1772994643247,-26468.1493497,8.078e-05,2]
[407997252,1772994643256,-500.0,8.219e-05,2]
[407997253,1772994643265,-500.0,8.219e-05,2]
[407997254,1772994643275,-500.0,8.219e-05,2]
[407997255,1772994643284,-500.0,8.219e-05,2]
[407997256,1772994643294,-525.98482365,8.219e-05,2]
[407997257,1772994643304,-400.00627704,8.219e-05,2]
[407997258,1772994643314,-3092.96547559,8.367e-05,2]
[407997259,1772994643323,-434.96722222,8.424e-05,2]
[407997260,1772994643333,-160.0,8.503e-05,3]
[407997261,1772994643342,-387.65735174,8.548e-05,2]
[407997262,1772994643351,-387.65735174,8.603e-05,2]
[407997263,1772994643361,-387.65735174,8.63e-05,2]
[407997264,1772994643371,-6009.21154498,8.63e-05,2]
[407997265,1772994643380,-387.65735174,8.685e-05,2]
[407997266,1772994643389,-387.65735174,8.712e-05,2]
[407997267,1772994643399,-161.53526232,8.746e-05,2]
[407997268,1772994643409,-387.65735174,8.767e-05,2]
[407997269,1772994643418,-387.65735174,8.795e-05,2]
[407997270,1772994643427,-2191.0,8.83e-05,2]
[407997271,1772994643437,-732.0,8.83e-05,2]
[407997272,1772994643446,-435.0,8.83e-05,2]
[407997273,1772994643455,-387.65735174,8.849e-05,2]
[407997275,1772994643464,-387.65735174,8.877e-05,2]
[407997276,1772994643475,-2000.0,8.9e-05,7]
[407997277,1772994643484,-3207.40519818,8.915e-05,2]
[407997278,1772994643494,-38000.0,8.922e-05,2]
[407997279,1772994643503,-29536.38172218,8.931e-05,2]
[407997280,1772994644084,-428.47,8.931e-05,2]
[407997281,1772994644096,-1509.5865512,8.931e-05,2]
[407997282,1772994644157,-1635.28959165,8.931e-05,2]
[407997283,1772994644247,-4890.27213497,8.931e-05,2]
[407997284,1772994644258,-38000.0,8.931e-05,2]
[407997285,1772994644268,-38000.0,8.931e-05,2]
[407997286,1772994644277,-38000.0,8.931e-05,2]